bitfinex-derivatives/quotes_BNBF0:USTF0_20251225
["timestamp","ask_amount","ask_price","bid_price","bid_amount"]
[1766660485718,1.19562385,837.24,836.36,1.19183808]
[1766660485917,1.19562385,837.23,836.36,1.19183808]
[1766660486221,1.19562385,837.22,836.36,1.19183808]
[1766660486421,1.19562385,837.21,836.36,1.19183808]
[1766660486621,1.19562385,837.2,836.36,1.19183808]
[1766660486824,1.19562385,837.19,836.36,1.19183808]
[1766660487121,1.19562385,837.18,836.37,1.19183808]
[1766660487318,1.19562385,837.17,836.37,1.19183808]
[1766660487518,1.19562385,837.16,836.37,1.19183808]
[1766660487722,0.88928976,837.26,836.37,1.19183808]
[1766660487924,1.19562385,837.25,836.37,1.19183808]
[1766660488223,1.19562385,837.24,836.37,1.19183808]
[1766660488419,1.19562385,837.23,836.37,1.19183808]
[1766660488621,1.19562385,837.22,836.37,1.19183808]
[1766660488822,1.19562385,837.21,836.37,1.19183808]
[1766660489023,1.19562385,837.2,836.37,1.19183808]
[1766660489322,1.19562385,837.19,836.37,1.19183808]
[1766660489525,1.19562385,837.18,836.37,1.19183808]
[1766660489719,1.19562385,837.17,836.37,1.19183808]
[1766660489925,1.19562385,837.16,836.37,1.19183808]
[1766660490121,0.88928976,837.26,836.37,1.19183808]
[1766660490322,1.19563365,837.25,836.37,1.19183808]
[1766660490626,1.19563365,837.24,836.37,1.19183808]
[1766660490825,1.19563365,837.23,836.37,1.19183808]
[1766660491020,1.19563365,837.22,836.37,1.19183808]
[1766660491225,1.19563365,837.21,836.36,1.19183808]
[1766660491521,0.88928976,837.26,836.36,1.19183808]
[1766660491522,1.19563365,837.2,836.36,1.19183808]
[1766660491720,1.19563365,837.19,836.36,1.19183808]
[1766660491922,1.19563365,837.18,836.36,1.19183808]
[1766660492125,1.19563365,837.17,836.36,1.19183808]
[1766660492422,1.19563365,837.16,836.36,1.19183808]
[1766660492623,0.88928976,837.26,836.36,1.19183808]
[1766660492822,1.19563365,837.25,836.36,1.19183808]
[1766660493123,1.19563365,837.24,836.36,1.19183808]
[1766660493320,1.19563365,837.23,836.36,1.19183808]
[1766660493526,1.19563365,837.22,836.36,1.19183808]
[1766660493722,1.19563365,837.21,836.36,1.19183808]
[1766660493922,1.19563365,837.2,836.36,1.19183808]
[1766660494126,1.19563365,837.19,836.38,1.19183808]
[1766660494427,1.19563365,837.18,836.38,1.19183808]
[1766660494628,0.88928976,837.28,836.38,1.19183808]
[1766660494829,1.19560498,837.27,836.38,1.19183808]
[1766660495029,1.19560498,837.26,836.38,1.19183808]
[1766660495326,1.19560498,837.25,836.38,1.19183808]
[1766660495526,1.19560498,837.24,836.38,1.19183808]
[1766660495831,1.19560498,837.23,836.38,1.19183808]
[1766660496125,1.19560498,837.22,836.38,1.19183808]
[1766660496330,1.19560498,837.21,836.38,1.19183808]
[1766660496527,1.19560498,837.2,836.38,1.19183808]
[1766660496726,1.19560498,837.19,836.38,1.19183808]
[1766660497030,1.19560498,837.18,836.38,1.19183808]
[1766660497326,0.88928976,837.28,836.38,1.19183808]
[1766660497531,1.19560498,837.27,836.38,1.19183808]
[1766660497730,1.19560498,837.26,836.38,1.19183808]
[1766660497930,0.88928976,837.28,836.38,1.19183808]
[1766660497931,1.19560498,837.25,836.38,1.19183808]
[1766660498132,1.19560498,837.24,836.38,1.19183808]
[1766660498431,1.19560498,837.23,836.39,1.19183808]
[1766660498631,1.19560498,837.22,836.39,1.19183808]
[1766660498832,1.19560498,837.21,836.39,1.19183808]
[1766660499127,1.19560498,837.2,836.39,1.19183808]
[1766660499327,1.19560498,837.19,836.39,1.19183808]
[1766660499527,1.19560498,837.18,836.39,1.19183808]
[1766660499732,0.88928976,837.28,836.39,1.19183808]
[1766660500031,1.19560408,837.27,836.39,1.19183808]
[1766660500228,1.19560408,837.26,836.39,1.19183808]
[1766660500430,1.19560408,837.25,836.39,1.19183808]
[1766660500730,1.19560408,837.24,836.39,1.19183808]
[1766660500929,1.19560408,837.23,836.39,1.19183808]
[1766660501132,1.19560408,837.22,836.39,1.19183808]
[1766660501330,1.19560408,837.21,836.39,1.19183808]
[1766660501630,1.19560408,837.2,836.39,1.19183808]
[1766660501834,1.19560408,837.19,836.39,1.19183808]
[1766660502130,1.19560408,837.18,836.39,1.19183808]
[1766660502329,0.88928976,837.28,836.39,1.19183808]
[1766660502529,1.19560447,837.27,836.39,1.19183808]
[1766660502730,1.19560447,837.26,836.39,1.19183808]
[1766660503033,1.19560447,837.25,836.39,1.19183808]
[1766660503233,1.19560447,837.24,836.39,1.19183808]
[1766660503429,1.19560447,837.23,836.39,1.19183808]
[1766660503630,1.19560447,837.22,836.39,1.19183808]
[1766660503832,1.19560447,837.21,836.39,1.19183808]
[1766660504033,1.19560447,837.2,836.39,1.19183808]
[1766660504231,1.19560447,837.19,836.39,1.19183808]
[1766660504439,1.19560447,837.18,836.39,1.19183808]
[1766660504634,0.88928976,837.28,836.39,1.19183808]
[1766660504832,1.1956046,837.27,836.39,1.19183808]
[1766660505136,1.1956046,837.26,836.39,1.19183808]
[1766660505337,1.1956046,837.25,836.39,1.19183808]
[1766660505537,1.1956046,837.24,836.39,1.19183808]
[1766660505735,1.1956046,837.23,836.39,1.19183808]
[1766660505937,1.1956046,837.22,836.39,1.19183808]
[1766660506236,1.1956046,837.21,836.39,1.19183808]
[1766660506539,1.1956046,837.2,836.39,1.19183808]
[1766660506739,1.1956046,837.19,836.39,1.19183808]
[1766660507034,1.1956046,837.18,836.39,1.19183808]
[1766660507335,0.88928976,837.28,836.39,1.19183808]
[1766660507640,1.19560498,837.27,836.39,1.19183808]
[1766660507939,1.19560498,837.26,836.39,1.19183808]
[1766660508139,1.19560498,837.25,836.39,1.19183808]
[1766660508340,1.19560498,837.24,836.39,1.19183808]
[1766660508536,1.19560498,837.23,836.39,1.19183808]
[1766660508841,1.19560498,837.22,836.39,1.19183808]
[1766660509036,1.19560498,837.21,836.39,1.19183808]
[1766660509236,1.19560498,837.2,836.39,1.19183808]
[1766660509439,1.19560498,837.19,836.39,1.19183808]
[1766660509638,1.19560498,837.18,836.39,1.19183808]
[1766660509836,0.88928976,837.28,836.39,1.19183808]
[1766660510041,1.19560343,837.27,836.39,1.19183808]
[1766660510243,1.19560343,837.26,836.39,1.19183808]
[1766660510437,1.19560343,837.25,836.39,1.19183808]
[1766660510639,1.19560343,837.24,836.39,1.19183808]
[1766660510943,1.19560343,837.23,836.4,1.19183808]
[1766660511144,1.19560343,837.22,836.4,1.19183808]
[1766660511344,1.19560343,837.21,836.4,1.19183808]
[1766660511546,1.19560343,837.2,836.4,1.19183808]
[1766660511842,1.19560343,837.19,836.4,1.19183808]
[1766660512141,1.19560343,837.18,836.4,1.19183808]
[1766660512342,0.88928976,837.28,836.4,1.19183808]
[1766660512545,1.19559034,837.27,836.4,1.19183808]
[1766660512841,0.88928976,837.28,836.4,1.19183808]
[1766660512842,1.19559034,837.26,836.4,1.19183808]
[1766660513043,1.19559034,837.25,836.4,1.19183808]
[1766660513242,1.19559034,837.24,836.4,1.19183808]
[1766660513441,1.19559034,837.23,836.4,1.19183808]
[1766660513742,1.19559034,837.22,836.4,1.19183808]
[1766660513941,1.19559034,837.21,836.4,1.19183808]
[1766660514146,1.19559034,837.2,836.4,1.19183808]
[1766660514348,1.19559034,837.19,836.4,1.19183808]
[1766660514543,0.88928976,837.28,836.4,1.19183808]
[1766660514842,1.19559034,837.27,836.4,1.19183808]
[1766660515146,1.19559034,837.26,836.4,1.19183808]
[1766660515344,1.19559034,837.25,836.4,1.19183808]
[1766660515547,1.19559034,837.24,836.4,1.19183808]
[1766660515843,1.19559034,837.23,836.4,1.19183808]
[1766660516047,1.19559034,837.22,836.4,1.19183808]
[1766660516241,1.19559034,837.21,836.4,1.19183808]
[1766660516446,1.19559034,837.2,836.4,1.19183808]
[1766660516644,1.19559034,837.19,836.4,1.19183808]
[1766660516947,1.19559034,837.18,836.4,1.19183808]
[1766660517145,0.88928976,837.28,836.4,1.19183808]
[1766660517447,1.19559137,837.27,836.4,1.19183808]
[1766660517645,1.19559137,837.26,836.4,1.19183808]
[1766660517850,1.19559137,837.25,836.4,1.19183808]
[1766660518045,1.19559137,837.24,836.4,1.19183808]
[1766660518245,1.19559137,837.23,836.4,1.19183808]
[1766660518448,1.19559137,837.22,836.4,1.19183808]
[1766660518745,1.19559137,837.21,836.4,1.19183808]
[1766660518943,1.19559137,837.2,836.4,1.19183808]
[1766660519145,1.19559137,837.19,836.4,1.19183808]
[1766660519351,1.19559137,837.18,836.4,1.19183808]
[1766660519548,0.88928976,837.28,836.4,1.19183808]
[1766660519751,1.19559163,837.27,836.4,1.19183808]
[1766660520051,1.19559163,837.26,836.4,1.19183808]
[1766660520252,1.19559163,837.25,836.4,1.19183808]
[1766660520549,1.19559163,837.24,836.4,1.19183808]
[1766660520750,1.19559163,837.23,836.4,1.19183808]
[1766660520948,1.19559163,837.22,836.4,1.19183808]
[1766660521151,1.19559163,837.21,836.4,1.19183808]
[1766660521350,1.19559163,837.2,836.4,1.19183808]
[1766660521549,1.19559163,837.19,836.4,1.19183808]
[1766660521751,1.19559163,837.18,836.4,1.19183808]
[1766660521955,0.88928976,837.27,836.4,1.19183808]
[1766660522250,1.19559189,837.26,836.4,1.19183808]
[1766660522552,1.19559189,837.25,836.4,1.19183808]
[1766660522852,1.19559189,837.24,836.4,1.19183808]
[1766660523049,1.19559189,837.23,836.4,1.19183808]
[1766660523354,1.19559189,837.22,836.4,1.19183808]
[1766660523551,1.19559189,837.21,836.4,1.19183808]
[1766660523756,1.19559189,837.2,836.4,1.19183808]
[1766660523956,1.19559189,837.19,836.4,1.19183808]
[1766660524158,1.19559189,837.18,836.4,1.19183808]
[1766660524357,0.88928976,837.28,836.4,1.19183808]
[1766660524558,1.19558998,837.27,836.4,1.19183808]
[1766660524853,1.19558998,837.26,836.4,1.19183808]
[1766660525056,1.19558998,837.25,836.4,1.19183808]
[1766660525254,1.19558998,837.24,836.4,1.19183808]
[1766660525455,0.88928976,837.28,836.4,1.19183808]
[1766660525456,1.19558998,837.23,836.4,1.19183808]
[1766660525654,1.19558998,837.22,836.4,1.19183808]
[1766660525855,1.19558998,837.21,836.4,1.19183808]
[1766660526054,1.19558998,837.2,836.4,1.19183808]
[1766660526258,1.19558998,837.19,836.4,1.19183808]
[1766660526458,1.19558998,837.18,836.4,1.19183808]
[1766660526659,0.88928976,837.28,836.4,1.19183808]
[1766660526857,1.19559024,837.27,836.4,1.19183808]
[1766660527159,1.19559024,837.26,836.41,1.19183808]
[1766660527355,1.19559024,837.25,836.41,1.19183808]
[1766660527559,1.19559024,837.24,836.41,1.19183808]
[1766660527756,1.19559024,837.23,836.41,1.19183808]
[1766660527959,1.19559024,837.22,836.41,1.19183808]
[1766660528259,1.19559024,837.21,836.41,1.19183808]
[1766660528457,1.19559024,837.2,836.41,1.19183808]
[1766660528760,0.88928976,837.28,836.41,1.19183808]
[1766660528761,1.19559024,837.19,836.41,1.19183808]
[1766660528961,0.88928976,837.28,836.41,1.19183808]
[1766660529260,1.19558019,837.27,836.41,1.19183808]
[1766660529460,1.19558019,837.26,836.41,1.19183808]
[1766660529661,1.19558019,837.25,836.41,1.19183808]
[1766660529958,1.19558019,837.24,836.41,1.19183808]
[1766660530160,1.19558019,837.23,836.41,1.19183808]
[1766660530357,1.19558019,837.22,836.41,1.19183808]
[1766660530560,1.19558019,837.21,836.41,1.19183808]
[1766660530758,1.19558019,837.2,836.41,1.19183808]
[1766660530963,1.19558019,837.19,836.41,1.19183808]
[1766660531162,0.88928976,837.28,836.41,1.19183808]
[1766660531462,1.19558044,837.27,836.41,1.19183808]
[1766660531664,1.19558044,837.26,836.41,1.19183808]
[1766660531861,1.19558044,837.25,836.41,1.19183808]
[1766660532062,1.19558044,837.24,836.41,1.19183808]
[1766660532358,1.19558044,837.23,836.41,1.19183808]
[1766660532663,1.19558044,837.22,836.41,1.19183808]
[1766660532962,1.19558044,837.21,836.41,1.19183808]
[1766660533163,1.19558044,837.2,836.41,1.19183808]
[1766660533360,1.19558044,837.19,836.41,1.19183808]
[1766660533560,0.88928976,837.28,836.41,1.19183808]
[1766660533764,1.19558032,837.27,836.41,1.19183808]
[1766660533960,1.19558032,837.26,836.41,1.19183808]
[1766660534160,1.19558032,837.25,836.41,1.19183808]
[1766660534456,1.19558032,837.24,836.41,1.19183808]
[1766660534658,1.19558032,837.23,836.41,1.19183808]
[1766660534863,1.19558032,837.22,836.41,1.19183808]
[1766660535064,1.19558032,837.21,836.41,1.19183808]
[1766660535265,1.19558032,837.2,836.41,1.19183808]
[1766660535460,1.19558032,837.19,836.41,1.19183808]
[1766660535663,0.88928976,837.28,836.41,1.19183808]
[1766660535861,1.19557993,837.27,836.41,1.19183808]
[1766660536163,1.19557993,837.26,836.41,1.19183808]
[1766660536360,1.19557993,837.25,836.41,1.19183808]
[1766660536561,1.19557993,837.24,836.41,1.19183808]
[1766660536764,1.19557993,837.23,836.41,1.19183808]
[1766660536966,1.19557993,837.22,836.41,1.19183808]
[1766660537163,1.19557993,837.21,836.41,1.19183808]
[1766660537368,1.19557993,837.2,836.41,1.19183808]
[1766660537566,1.19557993,837.19,836.41,1.19183808]
[1766660537765,1.19557993,837.18,836.41,1.19183808]
[1766660538068,0.88928976,837.28,836.41,1.19183808]
[1766660538263,1.19558006,837.27,836.41,1.19183808]
[1766660538462,1.19558006,837.26,836.41,1.19183808]
[1766660538666,0.88928976,837.3,836.43,1.19183808]
[1766660538867,0.88928976,837.4,836.53,1.19183808]
[1766660539066,1.19541122,837.39,836.53,1.19183808]
[1766660539263,1.19541122,837.38,836.51,1.19183808]
[1766660539768,1.19541122,837.38,836.52,1.19183808]
[1766660540163,1.19541122,837.38,836.51,1.19183808]
[1766660541169,1.19541122,837.38,836.5,1.19183808]
[1766660541465,1.19541122,837.38,836.51,1.19183808]
[1766660542465,1.19541122,837.38,836.5,1.19183808]
[1766660545164,1.19541122,837.38,836.49,1.19183808]
[1766660548469,1.19541122,837.38,836.48,1.19183808]
[1766660550066,0.20787537,837.39,836.48,1.19183808]
[1766660557174,0.20787537,837.39,836.47,1.19183808]
[1766660563380,0.20787537,837.39,836.48,1.19183808]
[1766660568482,0.20787537,837.39,836.51,1.19183808]
[1766660573185,0.20787537,837.39,836.52,1.19183808]
[1766660575687,1.09712602,837.56,836.58,1.19183808]
[1766660575894,1.19527667,837.55,836.58,1.19183808]
[1766660576086,1.19527667,837.54,836.58,1.19183808]
[1766660576390,1.19527667,837.53,836.61,1.19183808]
[1766660576586,1.19527667,837.52,836.61,1.19183808]
[1766660576787,1.19527667,837.51,836.61,1.19183808]
[1766660576991,1.19527667,837.5,836.61,1.19183808]
[1766660577192,0.20783626,837.56,836.6,1.19183808]
[1766660577487,1.19524639,837.55,836.6,1.19183808]
[1766660577688,1.19524639,837.54,836.6,1.19183808]
[1766660577892,1.19524639,837.53,836.6,1.19183808]
[1766660578092,1.19524639,837.52,836.61,1.19183808]
[1766660578290,1.19524639,837.51,836.61,1.19183808]
[1766660578586,0.20783626,837.56,836.61,1.19183808]
[1766660578788,1.19523635,837.55,836.61,1.19183808]
[1766660578988,1.19523635,837.54,836.61,1.19183808]
[1766660579187,1.19523635,837.53,836.61,1.19183808]
[1766660579387,0.20783626,837.56,836.62,1.19183808]
[1766660579590,0.88928976,837.69,836.71,1.19183808]
[1766660579792,0.20781516,837.67,836.71,1.19183808]
[1766660580087,1.19509578,837.66,836.71,1.19183808]
[1766660580288,1.19509578,837.65,836.71,1.19183808]
[1766660580494,1.19509578,837.64,836.71,1.19183808]
[1766660580690,1.19509578,837.63,836.71,1.19183808]
[1766660580894,1.19509578,837.62,836.72,1.19183808]
[1766660581195,0.20781516,837.67,836.71,1.19183808]
[1766660581388,0.20781516,837.67,835.65,4.1484817]
[1766660581389,1.19509578,837.66,836.73,1.19183808]
[1766660581588,1.19509578,837.65,836.73,1.19183808]
[1766660581788,1.19509578,837.64,836.73,1.19183808]
[1766660582093,1.19509578,837.63,836.73,1.19183808]
[1766660582289,0.20781516,837.67,836.72,1.19183808]
[1766660582592,1.19506787,837.66,836.72,1.19183808]
[1766660582792,1.19506787,837.65,836.72,1.19183808]
[1766660582992,1.19506787,837.64,836.72,1.19183808]
[1766660583190,0.20781516,837.67,836.72,1.19183808]
[1766660583390,0.20781516,837.67,836.71,1.19183808]
[1766660583391,1.19506787,837.66,836.71,1.19183808]
[1766660583694,1.19506787,837.65,836.71,1.19183808]
[1766660583993,0.20781516,837.67,836.71,1.19183808]
[1766660584194,1.1950675,837.66,836.71,1.19183808]
[1766660584391,0.20781516,837.67,836.71,1.19183808]
[1766660584593,1.1950675,837.66,836.71,1.19183808]
[1766660584793,0.20781516,837.67,836.71,1.19183808]
[1766660585091,1.1950675,837.66,836.69,1.19183808]
[1766660585292,1.19509541,837.65,836.68,1.19183808]
[1766660585491,1.19509541,837.64,836.68,1.19183808]
[1766660585795,0.20781516,837.67,836.68,1.19183808]
[1766660585990,1.19509541,837.66,836.68,1.19183808]
[1766660586194,1.19509541,837.65,836.68,1.19183808]
[1766660586392,0.20781516,837.67,836.67,1.19183808]
[1766660586592,1.19509541,837.66,836.67,1.19183808]
[1766660586895,1.19509541,837.65,836.67,1.19183808]
[1766660587093,0.20781516,837.67,836.67,1.19183808]
[1766660587297,1.19509541,837.66,836.67,1.19183808]
[1766660587492,0.88928976,837.75,836.69,1.19183808]
[1766660587698,1.1950675,837.74,836.69,1.19183808]
[1766660587897,1.1950675,837.73,836.72,1.19183808]
[1766660588095,1.1950675,837.72,836.72,1.19183808]
[1766660588297,1.1950675,837.71,836.71,1.19183808]
[1766660588498,0.20779097,837.77,836.71,1.19183808]
[1766660588695,1.19502557,837.76,836.71,1.19183808]
[1766660589000,1.19502557,837.75,836.71,1.19183808]
[1766660589198,1.19502557,837.74,836.71,1.19183808]
[1766660589399,1.19502557,837.73,836.71,1.19183808]
[1766660589600,1.19502557,837.72,836.71,1.19183808]
[1766660589799,0.20779097,837.77,836.71,1.19183808]
[1766660589999,1.19501553,837.76,836.71,1.19183808]
[1766660590200,1.19501553,837.75,836.71,1.19183808]
[1766660590499,0.20779097,837.77,836.71,1.19183808]
[1766660590500,1.19501553,837.74,836.71,1.19183808]
[1766660590699,0.20779097,837.77,836.71,1.19183808]
[1766660590900,1.19500548,837.76,836.71,1.19183808]
[1766660591197,1.19500548,837.75,836.71,1.19183808]
[1766660591395,1.19500548,837.74,836.71,1.19183808]
[1766660591600,0.20779097,837.77,836.71,1.19183808]
[1766660591900,1.19500548,837.76,836.71,1.19183808]
[1766660592097,1.19500548,837.75,836.71,1.19183808]
[1766660592295,0.20779097,837.77,836.7,1.19183808]
[1766660592599,1.19500548,837.76,836.7,1.19183808]
[1766660592799,1.19500548,837.75,836.7,1.19183808]
[1766660592994,0.20779097,837.77,836.7,1.19183808]
[1766660593199,1.19500548,837.76,836.7,1.19183808]
[1766660593399,1.19500548,837.75,836.7,1.19183808]
[1766660593700,0.20779097,837.77,836.7,1.19183808]
[1766660593898,1.19500548,837.76,836.7,1.19183808]
[1766660594103,1.19500548,837.75,836.7,1.19183808]
[1766660594298,0.20779097,837.77,836.7,1.19183808]
[1766660594604,0.20779097,837.77,836.77,1.19183808]
[1766660594902,0.20779097,837.77,836.78,1.19183808]
[1766660595201,0.20779097,837.77,836.77,1.19183808]
[1766660596100,0.20779097,837.77,836.78,1.19183808]
[1766660598400,0.20779097,837.77,836.77,1.19183808]
[1766660599503,0.20779097,837.77,836.8,1.19183808]
[1766660600405,0.20779097,837.77,836.79,1.19183808]
[1766660600607,0.88928976,838.01,836.8,1.19183808]
[1766660600803,1.19478329,838.0,836.84,1.19183808]
[1766660601106,0.20774445,837.91,836.84,1.19183808]
[1766660601303,0.20774445,837.91,836.83,1.19183808]
[1766660604213,0.88928976,838.28,837.0,1.19183808]
[1766660604506,1.19442318,838.27,837.03,1.19183808]
[1766660604706,0.2076899,838.11,837.03,1.19183808]
[1766660605306,0.2076899,838.11,837.02,1.19183808]
[1766660606411,0.2076899,838.11,837.0,1.19183808]
[1766660607313,0.2076899,838.11,837.02,1.19183808]
[1766660608209,0.2076899,838.11,837.01,1.19183808]
[1766660609509,0.2076899,838.11,837.0,1.19183808]
[1766660610210,0.2076899,838.11,836.99,1.19183808]
[1766660611309,0.2076899,838.11,836.98,1.19183808]
[1766660612211,0.2076899,838.11,836.99,1.19183808]
[1766660612414,0.2076899,838.11,836.98,1.19183808]
[1766660613315,0.2076899,838.11,836.97,1.19183808]
[1766660614215,0.2076899,838.11,836.98,1.19183808]
[1766660614415,0.2076899,838.11,836.97,1.19183808]
[1766660617211,0.2076899,838.11,836.96,1.19183808]
[1766660617415,0.2076899,838.11,836.97,1.19183808]
[1766660620112,0.2076899,838.11,836.98,1.19183808]
[1766660622218,0.2076899,838.11,836.99,1.19183808]
[1766660624215,0.2076899,838.11,837.0,1.19183808]
[1766660624717,0.2076899,838.11,836.93,1.19183808]
[1766660627321,0.2076899,838.11,836.94,1.19183808]
[1766660628323,0.2076899,838.11,836.95,1.19183808]
[1766660630324,0.2076899,838.11,836.96,1.19183808]
[1766660631320,0.2076899,838.11,836.97,1.19183808]
[1766660631525,0.2076899,838.11,836.98,1.19183808]
[1766660633029,0.2076899,838.11,836.93,1.19183808]
[1766660633227,0.2076899,838.11,836.89,1.19183808]
[1766660633427,1.19459966,838.1,836.89,1.19183808]
[1766660633628,1.19459966,838.09,836.86,1.19183808]
[1766660633927,1.19459966,838.08,836.86,1.19183808]
[1766660634127,1.19459966,838.07,836.86,1.19183808]
[1766660634330,1.19459966,838.06,836.87,1.19183808]
[1766660634627,1.19459966,838.05,836.87,1.19183808]
[1766660634829,1.19459966,838.04,836.87,1.19183808]
[1766660635128,1.19459966,838.03,836.87,1.19183808]
[1766660635325,1.19459966,838.02,836.87,1.19183808]
[1766660635528,1.09281765,838.11,836.87,1.19183808]
[1766660635725,1.19468156,838.1,836.87,1.19183808]
[1766660635925,1.19468156,838.09,836.87,1.19183808]
[1766660636130,1.19468156,838.08,836.87,1.19183808]
[1766660636430,1.19468156,838.07,836.88,1.19183808]
[1766660636629,1.19468156,838.06,836.88,1.19183808]
[1766660636929,0.88512775,838.04,836.82,1.19183808]
[1766660637129,1.19468156,838.03,836.82,1.19183808]
[1766660637330,1.19468156,838.03,836.83,1.19183808]
[1766660638332,2.07980931,838.03,836.84,1.19183808]
[1766660638532,1.19468156,838.02,836.84,1.19183808]
[1766660639432,2.07980931,838.02,836.85,1.19183808]
[1766660639631,1.19468156,838.01,836.85,1.19183808]
[1766660640228,2.07980931,838.01,836.85,1.19183808]
[1766660640529,1.19468156,838.0,836.85,1.19183808]
[1766660641332,1.19468156,838.0,836.86,1.19183808]
[1766660643229,2.07980931,838.0,836.86,1.19183808]
[1766660643434,1.19468156,837.99,836.86,1.19183808]
[1766660644334,1.19468156,837.99,836.87,1.19183808]
[1766660646635,1.19476306,837.98,836.87,1.19183808]
[1766660646935,1.19476306,837.97,836.87,1.19183808]
[1766660647133,1.19476306,837.96,836.87,1.19183808]
[1766660647431,1.19476306,837.95,836.87,1.19183808]
[1766660647631,1.19476306,837.94,836.87,1.19183808]
[1766660647931,1.19476306,837.93,836.87,1.19183808]
[1766660648135,1.19476306,837.92,836.87,1.19183808]
[1766660648435,1.19476306,837.91,836.87,1.19183808]
[1766660648636,0.88848105,838.0,836.87,1.19183808]
[1766660648931,1.19476139,837.99,836.87,1.19183808]
[1766660649135,1.19476139,837.98,836.87,1.19183808]
[1766660649333,0.88848105,838.0,836.11,2.98109633]
[1766660649334,1.19476139,837.97,836.86,1.19183808]
[1766660649631,1.19476139,837.96,836.86,1.19183808]
[1766660649835,1.19476139,837.95,836.86,1.19183808]
[1766660650035,1.19476139,837.94,836.86,1.19183808]
[1766660650231,1.19476139,837.93,836.86,1.19183808]
[1766660650431,1.19476139,837.92,836.86,1.19183808]
[1766660650631,0.88848105,838.01,836.86,1.19183808]
[1766660650832,0.2076899,838.11,836.97,1.19183808]
[1766660651034,1.194601,838.1,836.97,1.19183808]
[1766660651232,1.194601,838.09,836.97,1.19183808]
[1766660651435,1.194601,838.08,836.97,1.19183808]
[1766660651732,1.194601,838.07,836.97,1.19183808]
[1766660652036,1.194601,838.06,836.97,1.19183808]
[1766660652235,1.194601,838.05,836.97,1.19183808]
[1766660652435,1.194601,838.04,836.97,1.19183808]
[1766660652632,1.194601,838.03,836.97,1.19183808]
[1766660652837,0.2076899,838.11,836.97,1.19183808]
[1766660653034,1.194601,838.1,836.97,1.19183808]
[1766660653233,1.194601,838.09,836.98,1.19183808]
[1766660653439,1.194601,838.08,836.98,1.19183808]
[1766660653638,1.194601,838.07,836.98,1.19183808]
[1766660653838,1.194601,838.06,836.98,1.19183808]
[1766660654041,1.194601,838.05,837.0,1.19183808]
[1766660654339,0.2076899,838.11,837.0,1.19183808]
[1766660654538,1.19456997,838.1,837.0,1.19183808]
[1766660654738,1.19456997,838.09,837.0,1.19183808]
[1766660654938,1.19456997,838.08,837.0,1.19183808]
[1766660655134,1.19456997,838.07,837.0,1.19183808]
[1766660655438,1.19456997,838.06,837.0,1.19183808]
[1766660655638,1.19456997,838.05,837.0,1.19183808]
[1766660655939,0.2076899,838.11,837.0,1.19183808]
[1766660656134,1.19456997,838.1,837.0,1.19183808]
[1766660656334,1.19456997,838.09,837.04,1.19183808]
[1766660656634,0.2076899,838.11,837.04,1.19183808]
[1766660656635,1.19456997,838.08,837.04,1.19183808]
[1766660656935,0.2076899,838.11,837.04,1.19183808]
[1766660657139,1.19451856,838.1,837.04,1.19183808]
[1766660657333,1.19451856,838.09,837.04,1.19183808]
[1766660657535,1.19451856,838.08,837.04,1.19183808]
[1766660657739,0.2076899,838.11,837.04,1.19183808]
[1766660657939,1.19451856,838.1,837.04,1.19183808]
[1766660658140,1.19451856,838.09,837.04,1.19183808]
[1766660658337,1.19451856,838.08,837.04,1.19183808]
[1766660658537,0.2076899,838.11,837.04,1.19183808]
[1766660658840,1.19451856,838.1,837.04,1.19183808]
[1766660659040,1.19451856,838.09,837.04,1.19183808]
[1766660659234,1.19451856,838.08,837.05,1.19183808]
[1766660659437,1.19451856,838.07,837.05,1.19183808]
[1766660659640,0.2076899,838.11,837.05,1.19183808]
[1766660659940,1.1945192,838.1,837.05,1.19183808]
[1766660660136,1.1945192,838.09,837.05,1.19183808]
[1766660660337,1.1945192,838.08,837.05,1.19183808]
[1766660660537,1.1945192,838.07,837.05,1.19183808]
[1766660660736,0.2076899,838.11,837.05,1.19183808]
[1766660660941,1.19451907,838.1,837.05,1.19183808]
[1766660661141,1.19451907,838.09,837.05,1.19183808]
[1766660661339,1.19451907,838.08,837.05,1.19183808]
[1766660661642,1.19451907,838.07,837.05,1.19183808]
[1766660661843,0.2076899,838.11,837.05,1.19183808]
[1766660662044,1.19451907,838.1,837.05,1.19183808]
[1766660662342,1.19451907,838.09,837.05,1.19183808]
[1766660662639,1.19451907,838.08,837.05,1.19183808]
[1766660662841,0.2076899,838.11,837.05,1.19183808]
[1766660663040,1.19451959,838.1,837.05,1.19183808]
[1766660663240,1.19451959,838.09,837.05,1.19183808]
[1766660663439,1.19451959,838.08,837.05,1.19183808]
[1766660663739,1.19451959,838.07,837.05,1.19183808]
[1766660663943,1.19451959,838.06,837.05,1.19183808]
[1766660664139,0.2076899,838.11,837.05,1.19183808]
[1766660664339,1.19451959,838.1,837.05,1.19183808]
[1766660664642,1.19451959,838.09,837.05,1.19183808]
[1766660664843,1.19451959,838.08,837.05,1.19183808]
[1766660665041,1.19451959,838.07,837.05,1.19183808]
[1766660665343,1.19451959,838.06,837.06,1.19183808]
[1766660665543,0.2076899,838.11,837.06,1.19183808]
[1766660665738,1.19451959,838.1,837.06,1.19183808]
[1766660666040,1.19451959,838.09,837.06,1.19183808]